bitfinex-derivatives/quotes_BTCF0:USTF0_20250514
["timestamp","ask_amount","ask_price","bid_price","bid_amount"]
[1747228500096,0.2562125,104090.0,104080.0,0.54882703]
[1747228500794,0.2864125,104090.0,104080.0,0.54882703]
[1747228501207,0.2864125,104090.0,104080.0,0.38682703]
[1747228501498,0.2864125,104090.0,104080.0,0.38120632]
[1747228504804,0.2562125,104090.0,104080.0,0.50145174]
[1747228505003,0.2249125,104090.0,104080.0,0.50145174]
[1747228505204,0.2249125,104090.0,104080.0,0.66345174]
[1747228505390,0.1931125,104090.0,104080.0,0.66345174]
[1747228505990,0.2576125,104090.0,104080.0,0.66345174]
[1747228506500,0.1931125,104090.0,104080.0,0.66907245]
[1747228507104,0.1931125,104090.0,104080.0,0.50707245]
[1747228508903,0.1931125,104090.0,104080.0,0.62731787]
[1747228509095,0.1931125,104090.0,104080.0,0.78931787]
[1747228509298,0.1931125,104090.0,104080.0,0.66907245]
[1747228511000,0.2569125,104090.0,104080.0,0.66907245]
[1747228511225,0.2569125,104090.0,104080.0,0.50707245]
[1747228511505,0.2569125,104090.0,104080.0,0.38682703]
[1747228511705,0.2569125,104090.0,104080.0,0.38120632]
[1747228512707,0.0335,104090.0,104080.0,0.62169716]
[1747228513000,0.001,104090.0,104080.0,0.98249716]
[1747228513200,0.001,104090.0,104080.0,1.14449716]
[1747228513201,0.1931125,104090.0,104080.0,1.14449716]
[1747228513603,0.1931125,104090.0,104080.0,2.64449716]
[1747228513795,0.001,104090.0,104080.0,2.86801716]
[1747228513994,0.1931125,104090.0,104080.0,2.86801716]
[1747228514406,0.001,104090.0,104080.0,2.86801716]
[1747228514797,0.001,104090.0,104080.0,2.87363787]
[1747228516711,0.001,104090.0,104080.0,3.01455978]
[1747228518510,0.001,104090.0,104080.0,1.51455978]
[1747228519010,0.001,104090.0,104080.0,3.01455978]
[1747228522610,0.001,104090.0,104080.0,2.77406894]
[1747228522799,0.1931125,104090.0,104080.0,2.40483786]
[1747228523105,0.0335,104090.0,104080.0,2.9059586]
[1747228523306,0.2585125,104090.0,104080.0,2.9059586]
[1747228524011,0.2585125,104090.0,104080.0,2.78571318]
[1747228524205,0.2585125,104090.0,104080.0,2.9059586]
[1747228524600,0.2907125,104090.0,104080.0,2.6826386]
[1747228525513,0.2907125,104090.0,104080.0,2.4591586]
[1747228525707,0.2907125,104090.0,104080.0,2.6826386]
[1747228525903,0.2907125,104090.0,104080.0,2.7153386]
[1747228527709,0.2907125,104090.0,104080.0,2.44855056]
[1747228527911,0.2907125,104090.0,104080.0,2.56879598]
[1747228529315,0.2907125,104090.0,104080.0,2.44855056]
[1747228529614,0.2907125,104090.0,104080.0,2.56879598]
[1747228530822,0.2907125,104090.0,104080.0,2.6890414]
[1747228531416,0.2907125,104090.0,104080.0,2.56879598]
[1747228531610,0.0986,104090.0,104080.0,2.6890414]
[1747228531816,0.2907125,104090.0,104080.0,2.6890414]
[1747228533924,0.0986,104090.0,104080.0,2.6890414]
[1747228534222,0.2907125,104090.0,104080.0,2.4655614]
[1747228534418,0.2907125,104090.0,104080.0,2.6890414]
[1747228534724,0.0986,104090.0,104080.0,2.6890414]
[1747228535425,0.0664,104090.0,104080.0,2.6890414]
[1747228536011,0.0335,104090.0,104080.0,2.4655614]
[1747228536217,0.0335,104090.0,104080.0,3.0741614]
[1747228538024,0.0335,104090.0,104080.0,3.07978211]
[1747228539126,0.0335,104090.0,104080.0,3.0741614]
[1747228542028,0.0335,104090.0,104080.0,3.22070402]
[1747228542229,0.0335,104090.0,104080.0,3.22632473]
[1747228542925,0.001,104090.0,104080.0,3.58712473]
[1747228543129,0.001,104090.0,104080.0,3.58150402]
[1747228544224,0.001,104090.0,104080.0,3.58712473]
[1747228544726,0.001,104090.0,104080.0,3.70737015]
[1747228544924,0.001,104090.0,104080.0,3.72087015]
[1747228545126,0.1337,104100.0,104090.0,0.1921125]
[1747228545328,0.1337,104100.0,104090.0,0.88920334]
[1747228545832,0.101,104100.0,104090.0,0.98527866]
[1747228546015,0.1,104100.0,104090.0,1.09484666]
[1747228546225,0.0327,104110.0,104100.0,0.1920941]
[1747228546530,0.0327,104110.0,104100.0,1.33482494]
[1747228546724,0.16345298,104120.0,104110.0,0.1920756]
[1747228546923,0.19615298,104120.0,104110.0,0.73612102]
[1747228547126,0.16435298,104120.0,104110.0,1.05096644]
[1747228547325,0.16435298,104120.0,104110.0,2.52678711]
[1747228548229,0.09945298,104120.0,104110.0,2.48503253]
[1747228548523,0.09945298,104120.0,104110.0,2.36478711]
[1747228548741,0.09945298,104120.0,104110.0,2.48503253]
[1747228548923,0.09945298,104120.0,104110.0,2.49467034]
[1747228549117,0.10445298,104120.0,104110.0,2.37442492]
[1747228549319,0.26645298,104120.0,104110.0,2.49467034]
[1747228549521,0.26145298,104120.0,104110.0,2.49467034]
[1747228549733,0.26145298,104120.0,104110.0,2.59171834]
[1747228550427,0.12192392,104130.0,104120.0,0.1920572]
[1747228550631,0.0332,104140.0,104130.0,0.1920387]
[1747228550832,0.0332,104140.0,104130.0,0.76688412]
[1747228551035,0.2885203,104140.0,104130.0,2.36293175]
[1747228551234,0.4505203,104140.0,104130.0,2.80869175]
[1747228551535,0.2585,104140.0,104130.0,2.6004862]
[1747228552039,0.1955,104140.0,104130.0,2.49785162]
[1747228552227,0.163,104140.0,104130.0,2.94353162]
[1747228552535,0.164,104140.0,104130.0,2.94353162]
[1747228553034,0.164,104140.0,104130.0,2.8232862]
[1747228554825,0.196,104140.0,104130.0,2.8232862]
[1747228555628,0.196,104140.0,104130.0,2.70304078]
[1747228555933,0.196,104140.0,104130.0,2.8232862]
[1747228556125,0.196,104140.0,104130.0,1.3232862]
[1747228556633,0.196,104140.0,104130.0,2.8232862]
[1747228557128,0.164,104140.0,104130.0,2.94353162]
[1747228557837,0.164,104140.0,104130.0,3.03955962]
[1747228558134,0.164,104140.0,104130.0,3.53955962]
[1747228558538,0.164,104140.0,104130.0,3.44353162]
[1747228558934,0.164,104140.0,104130.0,3.20304078]
[1747228559129,0.164,104140.0,104130.0,3.3232862]
[1747228559328,0.1947,104140.0,104130.0,3.3232862]
[1747228559936,0.1937,104140.0,104130.0,3.3367862]
[1747228560534,0.1937,104140.0,104130.0,2.77086078]
[1747228560734,0.2268,104140.0,104130.0,2.72726078]
[1747228561042,0.2268,104140.0,104130.0,3.17270078]
[1747228561542,0.2268,104140.0,104130.0,2.67270078]
[1747228561720,0.2268,104140.0,104130.0,2.85573912]
[1747228562534,0.2268,104140.0,104130.0,2.67270078]
[1747228562935,0.2268,104140.0,104130.0,2.85573912]
[1747228563136,0.2268,104140.0,104130.0,2.38640078]
[1747228563137,0.4188203,104140.0,104130.0,2.38640078]
[1747228563329,0.4188203,104140.0,104130.0,2.60896078]
[1747228563938,0.4188203,104140.0,104130.0,2.38640078]
[1747228564541,0.42444101,104140.0,104130.0,2.16356078]
[1747228567532,0.42444101,104140.0,104130.0,1.97152208]
[1747228567741,0.60747935,104140.0,104130.0,0.11072208]
[1747228568041,0.60747935,104140.0,104130.0,0.30276078]
[1747228568843,0.61747935,104140.0,104130.0,0.30276078]
[1747228569146,0.43444101,104140.0,104130.0,0.30276078]
[1747228571942,0.43444101,104140.0,104130.0,0.11072208]
[1747228572136,1.32430735,104140.0,104130.0,0.09604763]
[1747228572343,1.69430735,104140.0,104130.0,0.09604763]
[1747228573243,1.69630735,104140.0,104130.0,0.09604763]
[1747228573835,0.1920572,104120.0,104110.0,0.70847476]
[1747228574037,0.37509554,104120.0,104110.0,0.20363436]
[1747228574241,0.60189554,104120.0,104110.0,0.20363436]
[1747228574437,0.60189554,104120.0,104110.0,0.29966355]
[1747228574842,0.60189554,104120.0,104110.0,0.30166355]
[1747228575347,0.60189554,104120.0,104110.0,0.10958795]
[1747228575545,0.60189554,104120.0,104110.0,0.11058795]
[1747228576337,0.60189554,104120.0,104110.0,0.10858795]
[1747228576741,0.60189554,104120.0,104110.0,0.30066355]
[1747228576938,0.4188572,104120.0,104110.0,0.30066355]
[1747228577143,0.60189554,104120.0,104110.0,0.29966355]
[1747228577335,0.4188572,104120.0,104110.0,0.29966355]
[1747228578244,0.60189554,104120.0,104110.0,0.10758795]
[1747228578440,1.43874354,104120.0,104110.0,0.09795014]
[1747228578636,1.68874354,104120.0,104110.0,0.00192095]
[1747228578947,1.65874354,104120.0,104110.0,0.00192095]
[1747228579746,1.66074354,104120.0,104110.0,0.00192095]
[1747228580839,1.66636425,104120.0,104110.0,0.00192095]
[1747228582649,1.66636425,104120.0,104110.0,0.00173155]
[1747228583447,1.48332591,104120.0,104110.0,0.00173155]
[1747228583645,1.66636425,104120.0,104110.0,0.00173155]
[1747228584143,1.66636425,104120.0,104110.0,5e-08]
[1747228586348,1.41636425,104120.0,104110.0,5e-08]
[1747228592358,1.66636425,104120.0,104110.0,5e-08]
[1747228592651,1.66636425,104120.0,104080.0,0.03144107]
[1747228592652,0.1921125,104090.0,104080.0,0.03144107]
[1747228592852,1.51063084,104090.0,104080.0,0.03]
[1747228593038,0.192131,104080.0,104070.0,0.06462169]
[1747228593242,1.06936934,104080.0,104070.0,0.09462169]
[1747228593439,1.06936934,104080.0,104070.0,0.16066932]
[1747228594150,1.23136934,104080.0,104070.0,0.16066932]
[1747228595251,1.23136934,104080.0,104060.0,0.14650715]
[1747228595252,0.1921494,104070.0,104060.0,0.14650715]
[1747228595452,1.76716608,104070.0,104060.0,0.14650715]
[1747228595644,1.87787987,104070.0,104060.0,0.10768545]
[1747228595845,1.87787987,104070.0,104060.0,0.00973165]
[1747228596150,2.0496918,104070.0,104060.0,0.00973165]
[1747228596452,1.67380319,104070.0,104060.0,0.01373165]
[1747228596655,1.85684153,104070.0,104060.0,0.01373165]
[1747228596855,1.85684153,104070.0,104060.0,0.01773165]
[1747228597058,1.85684153,104070.0,104060.0,0.008]
[1747228597245,1.85684153,104070.0,104060.0,0.0402]
[1747228597853,2.03987987,104070.0,104060.0,0.0402]
[1747228598057,1.85684153,104070.0,104060.0,0.0402]
[1747228598558,1.67380319,104070.0,104060.0,0.0402]
[1747228598858,1.85684153,104070.0,104060.0,0.008]
[1747228599057,2.049757,104070.0,104060.0,0.008]
[1747228599747,0.1921679,104060.0,104050.0,0.0322]
[1747228600052,0.1921864,104050.0,104040.0,0.04263165]
[1747228600362,1.61574474,104050.0,104040.0,0.16932543]
[1747228600654,1.61574474,104050.0,104040.0,0.07323165]
[1747228600860,1.61574474,104050.0,104040.0,0.00973165]
[1747228601158,1.77774474,104050.0,104040.0,0.00973165]
[1747228601645,1.77774474,104050.0,104040.0,0.0306]
[1747228602852,1.77774474,104050.0,104040.0,0.0326]
[1747228603447,1.77774474,104050.0,104040.0,0.002]
[1747228603750,0.1922049,104040.0,104030.0,0.06502243]
[1747228603952,0.1922603,104010.0,104000.0,0.29539016]
[1747228604260,1.31829864,104010.0,104000.0,0.42340241]
[1747228604759,1.62758498,104010.0,104000.0,0.32729016]
[1747228605156,1.82278498,104010.0,104000.0,0.33229016]
[1747228605364,1.82278498,104010.0,104000.0,0.33729016]
[1747228605664,1.63974664,104010.0,104000.0,0.33729016]
[1747228606060,1.63974664,104010.0,104000.0,0.1389]
[1747228606566,1.64956151,104010.0,104000.0,0.102]
[1747228606761,0.1922788,104000.0,103990.0,0.06592317]
[1747228606952,1.15931714,104000.0,103990.0,0.03452317]
[1747228607160,1.32131714,104000.0,103990.0,0.03452317]
[1747228607455,1.152713,104000.0,103990.0,0.06662317]
[1747228608567,1.1070788,104000.0,103990.0,0.53811727]
[1747228608787,0.3542788,104000.0,103990.0,0.89891727]
[1747228608983,0.162,104000.0,103990.0,1.25971727]
[1747228609289,0.1922703,104010.0,104000.0,0.1922788]
[1747228609474,0.1922703,104010.0,104000.0,0.2853788]
[1747228609673,0.1922703,104010.0,104000.0,0.82921714]
[1747228609875,0.1922703,104010.0,104000.0,0.9253756]
[1747228610488,0.1922703,104010.0,104000.0,0.9273756]
[1747228611289,0.3542703,104010.0,104000.0,0.9273756]
[1747228611877,0.3542703,104010.0,104000.0,0.9283756]
[1747228612078,0.1922703,104010.0,104000.0,0.9283756]
[1747228613286,0.272709,104020.0,104010.0,0.1922603]
[1747228613485,0.6972163,104030.0,104020.0,0.1922418]
[1747228613681,0.8091567,104030.0,104020.0,0.46798014]
[1747228613881,0.8091567,104030.0,104020.0,0.38109102]
[1747228614679,0.8091567,104030.0,104020.0,0.18884922]
[1747228614881,0.9591567,104030.0,104020.0,0.38109102]
[1747228615082,1.30419504,104030.0,104020.0,0.0618]
[1747228615390,1.35042077,104030.0,104020.0,0.0618]
[1747228615578,0.3364318,104020.0,104010.0,0.0649]
[1747228615784,1.32567014,104020.0,104010.0,0.2571603]
[1747228616392,1.32567014,104020.0,104010.0,0.16103073]
[1747228616893,1.32567014,104020.0,104010.0,0.35329103]
[1747228617083,1.48767014,104020.0,104010.0,0.35329103]
[1747228617489,1.3046318,104020.0,104010.0,0.35329103]
[1747228618596,1.2731318,104020.0,104010.0,0.35329103]
[1747228618985,0.4814674,104020.0,104010.0,0.89712937]
[1747228619185,0.3194674,104020.0,104010.0,0.89712937]
[1747228619386,0.2403038,104020.0,104010.0,0.89712937]
[1747228621086,0.2403038,104020.0,104010.0,1.05912937]
[1747228622000,0.2403038,104020.0,104010.0,0.91509334]
[1747228622982,0.1922418,104020.0,104010.0,0.91509334]
[1747228623485,0.3684131,104030.0,104020.0,0.1922418]
[1747228623685,0.4384131,104030.0,104020.0,0.99152014]
[1747228624098,0.4384131,104030.0,104020.0,1.08766011]
[1747228624393,0.102,104030.0,104020.0,1.08766011]
[1747228624603,0.57317114,104040.0,104030.0,0.1922233]
[1747228624787,0.96507114,104040.0,104030.0,0.5530233]
[1747228624988,0.93287114,104040.0,104030.0,0.54383834]
[1747228625191,0.96437114,104040.0,104030.0,0.87335403]
[1747228625592,0.32367321,104040.0,104030.0,1.05639237]
[1747228625896,0.00344331,104040.0,104030.0,1.05639237]
[1747228626098,0.00344331,104040.0,104030.0,1.27851237]
[1747228626298,0.0319,104050.0,104040.0,0.1922049]
[1747228626602,0.2240864,104050.0,104040.0,1.05278324]
[1747228626902,0.2240864,104050.0,104040.0,1.14889549]
[1747228627891,0.2270864,104050.0,104040.0,1.14889549]
[1747228628501,0.2310864,104050.0,104040.0,1.14889549]
[1747228629085,0.0389,104050.0,104040.0,1.14889549]
[1747228629290,0.2717276,104060.0,104050.0,0.1921864]
[1747228629490,0.651671,104060.0,104050.0,0.73602474]
[1747228629791,0.651671,104060.0,104050.0,0.6167864]
[1747228629998,0.351671,104060.0,104050.0,0.71288942]
[1747228630694,0.354671,104060.0,104050.0,0.71288942]
[1747228631491,0.356671,104060.0,104050.0,0.71288942]
[1747228631695,0.366671,104060.0,104050.0,0.71288942]
[1747228633405,0.2705679,104060.0,104050.0,0.89592776]
[1747228633600,0.2290679,104060.0,104050.0,0.89592776]
[1747228633795,0.0369,104060.0,104050.0,1.11796776]
[1747228634000,0.33969915,104080.0,104070.0,0.1921494]
[1747228634201,0.55119915,104080.0,104070.0,0.73598774]
[1747228634400,0.55119915,104080.0,104070.0,0.79928774]
[1747228634603,0.40119915,104080.0,104070.0,0.89539076]
[1747228635503,0.40519915,104080.0,104070.0,0.89539076]
[1747228635906,0.40519915,104080.0,104070.0,0.71235242]
[1747228636403,0.41519915,104080.0,104070.0,0.71235242]
[1747228636803,0.41719915,104080.0,104070.0,0.71235242]
[1747228637808,0.41719915,104080.0,104070.0,0.89539076]
[1747228638508,0.41719915,104080.0,104070.0,0.71235242]
[1747228638704,0.41719915,104080.0,104070.0,0.89539076]
[1747228638903,0.38709915,104080.0,104070.0,0.89539076]
[1747228639805,0.41979915,104080.0,104070.0,0.89539076]
[1747228640811,0.40979915,104080.0,104070.0,0.89539076]
[1747228641709,0.28102485,104080.0,104070.0,0.89539076]
[1747228641907,0.04084245,104080.0,104070.0,1.3003891]
[1747228642110,0.04084245,104080.0,104070.0,1.4623891]
[1747228642306,0.23297345,104080.0,104070.0,1.4623891]
[1747228642495,0.00944245,104080.0,104070.0,1.4623891]
[1747228642696,0.0941,104090.0,104080.0,0.192131]
[1747228642996,0.2224134,104090.0,104080.0,2.55382934]
[1747228643201,0.2224134,104090.0,104080.0,2.71582934]
[1747228643400,0.2224134,104090.0,104080.0,2.81191389]
[1747228643804,0.2531134,104090.0,104080.0,2.81191389]
[1747228644207,0.2531134,104090.0,104080.0,2.64991389]
[1747228644811,0.2224134,104090.0,104080.0,2.64991389]
[1747228645309,0.2244125,104090.0,104080.0,2.81191389]
[1747228645510,0.4525584,104100.0,104090.0,0.1921125]
[1747228645707,0.4525584,104100.0,104090.0,0.80045084]
[1747228646204,0.3565072,104100.0,104090.0,0.89652616]
[1747228646411,0.101,104100.0,104090.0,0.89652616]
[1747228646807,0.103,104100.0,104090.0,0.89652616]
[1747228647006,0.103,104100.0,104090.0,1.11840616]
[1747228647421,0.2950941,104100.0,104090.0,1.11840616]
[1747228647914,0.103,104100.0,104090.0,1.13275643]
[1747228648417,0.08651693,104100.0,104090.0,2.63275643]
[1747228649103,0.08651693,104100.0,104090.0,2.72882443]
[1747228650610,0.08651693,104100.0,104090.0,2.63275643]
[1747228655020,0.09213764,104100.0,104090.0,2.63275643]
[1747228655723,0.12463764,104100.0,104090.0,2.63275643]
[1747228656923,0.12463764,104100.0,104090.0,2.41087643]
[1747228657123,0.12463764,104100.0,104090.0,2.85451643]
[1747228659142,0.28663764,104100.0,104090.0,2.85451643]
[1747228659740,0.28663764,104100.0,104090.0,2.67147809]
[1747228660035,0.28663764,104100.0,104090.0,2.85451643]
[1747228660241,0.12463764,104100.0,104090.0,2.85451643]
[1747228661929,0.09213764,104100.0,104090.0,2.85451643]
[1747228662329,0.28723764,104100.0,104090.0,2.85451643]
[1747228663243,0.12523764,104100.0,104090.0,2.85451643]
[1747228663830,0.12523764,104100.0,104090.0,2.67147809]
[1747228664037,0.15743764,104100.0,104090.0,2.85451643]
[1747228664239,0.31943764,104100.0,104090.0,2.85451643]
[1747228665132,0.15743764,104100.0,104090.0,2.85451643]
[1747228667234,0.31943764,104100.0,104090.0,2.85451643]
[1747228667446,0.35253764,104100.0,104090.0,2.85451643]
[1747228672645,0.35253764,104100.0,104090.0,3.04990659]
[1747228673448,0.35253764,104100.0,104090.0,2.86686825]
[1747228673645,0.19385764,104100.0,104090.0,3.04990659]
[1747228673846,0.07408404,104140.0,104130.0,0.1920387]
[1747228674141,0.26610754,104140.0,104130.0,0.73587704]
[1747228674544,0.26610754,104140.0,104130.0,0.83194313]
[1747228675248,0.42910754,104140.0,104130.0,0.83194313]
[1747228675641,0.42910754,104140.0,104130.0,0.86474313]
[1747228676640,0.42910754,104140.0,104130.0,0.87423479]
[1747228676837,0.52370754,104140.0,104130.0,0.87423479]
[1747228677051,0.4506235,104140.0,104130.0,0.87423479]
[1747228677445,0.4506235,104140.0,104130.0,0.69119645]
[1747228677748,0.4506235,104140.0,104130.0,0.87423479]
[1747228678144,0.4506235,104140.0,104130.0,0.65839645]
[1747228678349,0.4506235,104140.0,104130.0,0.84143479]
[1747228679351,0.4506235,104140.0,104130.0,0.87054479]
[1747228680150,0.4706235,104140.0,104130.0,0.87054479]
[1747228680355,0.4706235,104140.0,104130.0,0.64890479]
[1747228680956,0.4706235,104140.0,104130.0,0.65848188]
[1747228681548,0.4706235,104140.0,104130.0,0.64890479]
[1747228683238,1.01366184,104140.0,104130.0,0.28810479]
[1747228683946,0.8306235,104140.0,104130.0,0.64890479]
[1747228684147,1.01366184,104140.0,104130.0,0.64890479]
[1747228684356,1.01928255,104140.0,104130.0,0.64890479]
[1747228684554,0.83624421,104140.0,104130.0,0.64890479]
[1747228685357,0.83624421,104140.0,104130.0,0.67940479]
[1747228686853,1.01928255,104140.0,104130.0,0.09606609]
[1747228687061,1.01928255,104140.0,104130.0,0.28810479]
[1747228687753,1.01928255,104140.0,104130.0,0.09606609]
[1747228687959,0.1920387,104130.0,104120.0,1.8665766]
[1747228688261,0.73797704,104130.0,104120.0,0.46260579]
[1747228688457,0.5549387,104130.0,104120.0,0.46260579]
[1747228688860,0.5549387,104130.0,104120.0,1.96260579]
[1747228689253,0.7169387,104130.0,104120.0,1.96260579]
[1747228689562,0.7169387,104130.0,104120.0,0.82340579]
[1747228690150,0.7169387,104130.0,104120.0,0.85390579]
[1747228691465,0.7169387,104130.0,104120.0,0.86341956]
[1747228691762,0.89997704,104130.0,104120.0,0.74489329]
[1747228691964,0.7169387,104130.0,104120.0,0.38409329]
[1747228692151,0.7169387,104130.0,104120.0,0.74489329]
[1747228692658,0.7169387,104130.0,104120.0,0.77489329]
[1747228693961,0.7169387,104130.0,104120.0,0.31807209]
[1747228695553,1.30453538,104130.0,104120.0,0.09602919]
[1747228695753,1.48229704,104130.0,104120.0,0.09602919]
[1747228696859,1.48229704,104130.0,104120.0,0.32038639]
[1747228697165,1.26077704,104130.0,104120.0,0.32038639]
[1747228697367,1.48229704,104130.0,104120.0,0.32038639]
[1747228697569,1.20229704,104130.0,104120.0,0.32038639]
[1747228697759,0.7977387,104130.0,104120.0,0.35348639]
[1747228698372,0.98077704,104130.0,104120.0,0.35348639]
[1747228700774,1.05948179,104130.0,104120.0,0.35348639]
[1747228701476,1.05948179,104130.0,104120.0,0.19665875]
[1747228701675,1.05948179,104130.0,104120.0,0.29269716]
[1747228703371,1.35948179,104130.0,104120.0,0.12833841]
[1747228705371,1.35948179,104130.0,104120.0,0.0323]
[1747228705575,1.35948179,104130.0,104110.0,0.03382095]
[1747228705576,0.1920572,104120.0,104110.0,0.03382095]
[1747228705778,1.64323554,104120.0,104110.0,0.00192095]
[1747228705972,1.73928354,104120.0,104110.0,0.00192095]
[1747228706292,1.90128354,104120.0,104110.0,0.00192095]
[1747228706676,1.90128354,104120.0,104110.0,0.00292095]
[1747228706978,1.91092497,104120.0,104110.0,0.00292095]
[1747228707178,1.90128354,104120.0,104110.0,0.00292095]
[1747228707577,1.90128354,104120.0,104110.0,0.00192095]
[1747228707779,1.90128354,104120.0,104110.0,0.00392095]
[1747228708281,1.90428354,104120.0,104110.0,0.00192095]
[1747228708578,1.80823554,104120.0,104110.0,0.00192095]
[1747228709167,1.80823554,104120.0,104110.0,0.03312095]
[1747228709369,1.36519554,104120.0,104110.0,0.03312095]
[1747228709567,1.36519554,104120.0,104110.0,0.22519655]
[1747228709764,1.60823554,104120.0,104110.0,0.03312095]
[1747228710171,1.79823554,104120.0,104110.0,0.03312095]
[1747228711972,1.96810931,104120.0,104110.0,0.03312095]
[1747228714873,1.96810931,104120.0,104110.0,0.00192095]
[1747228715182,1.96810931,104120.0,104110.0,5e-08]
[1747228715579,2.66190931,104120.0,104110.0,5e-08]
[1747228715886,2.56511958,104120.0,104110.0,5e-08]
[1747228719188,2.66116758,104120.0,104110.0,5e-08]
[1747228719377,0.55817078,104100.0,104090.0,0.0317]
[1747228719577,1.73209078,104100.0,104090.0,0.0317]
[1747228719785,1.64485244,104100.0,104090.0,0.0647]
[1747228720174,1.80685244,104100.0,104090.0,0.0647]
[1747228720377,1.80685244,104100.0,104090.0,0.0317]
[1747228721172,1.64485244,104100.0,104090.0,0.0317]
[1747228721379,1.64485244,104100.0,104090.0,0.0647]
[1747228722083,1.80685244,104100.0,104090.0,0.0647]
[1747228723881,1.80685244,104100.0,104090.0,0.2568125]
[1747228724091,1.80685244,104100.0,104090.0,0.0647]
[1747228726392,1.80685244,104100.0,104090.0,0.2568125]
[1747228726601,1.80685244,104100.0,104090.0,0.0647]
[1747228727687,1.80685244,104100.0,104090.0,0.2568125]
[1747228728092,1.80685244,104100.0,104090.0,0.0647]
[1747228731298,1.86425728,104100.0,104090.0,0.0647]
[1747228733396,1.6238141,104100.0,104090.0,0.0647]
[1747228733703,1.30091569,104100.0,104090.0,0.0647]
[1747228733903,1.52247569,104100.0,104090.0,0.0647]
[1747228734095,1.36047569,104100.0,104090.0,0.0647]
[1747228736099,1.52247569,104100.0,104090.0,0.0647]
[1747228737006,1.64269728,104100.0,104090.0,0.0647]
[1747228738399,1.97886588,104100.0,104070.0,0.74085721]
[1747228738606,0.51992989,104090.0,104080.0,0.255331]
[1747228738894,0.85992989,104090.0,104080.0,0.35139709]
[1747228739092,0.85992989,104090.0,104080.0,0.255331]
[1747228739297,0.85992989,104090.0,104080.0,0.35140632]
[1747228739811,0.85992989,104090.0,104080.0,0.15927532]
[1747228740106,1.65858748,104090.0,104080.0,0.002]
[1747228740292,1.58669657,104090.0,104070.0,9e-08]
[1747228740498,0.1921494,104070.0,104060.0,0.14652068]
[1747228740804,1.33495258,104070.0,104060.0,8e-08]
[1747228741108,1.49664458,104070.0,104060.0,8e-08]
[1747228741312,1.65864458,104070.0,104060.0,8e-08]
[1747228741706,1.66811489,104070.0,104060.0,8e-08]
[1747228741909,1.24467014,104070.0,104060.0,8e-08]
[1747228742102,0.95497824,104070.0,104060.0,8e-08]
[1747228742308,1.71827983,104070.0,104060.0,0.00800008]
[1747228743405,1.78135907,104070.0,104060.0,0.06900008]
[1747228743916,1.59805824,104070.0,104060.0,0.06900008]
[1747228744212,1.79096477,104070.0,104060.0,0.06900008]
[1747228744416,1.9646599,104070.0,104060.0,0.06900008]
[1747228745015,1.9646599,104070.0,104060.0,0.069]
[1747228745704,1.58135907,104070.0,104060.0,0.069]
[1747228746010,1.13827907,104070.0,104060.0,0.069]
[1747228746206,0.97627907,104070.0,104060.0,0.069]
[1747228746606,1.41943907,104070.0,104060.0,0.069]
[1747228746914,1.60943907,104070.0,104060.0,0.069]
[1747228747112,1.42613824,104070.0,104060.0,0.069]
[1747228747303,1.60943907,104070.0,104060.0,0.069]
[1747228755218,1.7927399,104070.0,104060.0,0.008]
[1747228755410,1.79836061,104070.0,104060.0,0.008]
[1747228755606,1.79836061,104070.0,104060.0,0.0726]
[1747228755809,0.98859895,104070.0,104060.0,0.0726]
[1747228756004,0.19777011,104070.0,104060.0,0.90496251]
[1747228756223,0.19777011,104070.0,104060.0,1.07656098]
[1747228756419,0.1921494,104070.0,104060.0,1.54816098]
[1747228756724,0.1941442,104080.0,104070.0,0.1921494]
[1747228757022,0.194131,104080.0,104070.0,0.83315023]
[1747228757226,0.194131,104080.0,104070.0,0.99515023]
[1747228757522,0.194131,104080.0,104070.0,0.90793395]
[1747228757908,0.494131,104080.0,104070.0,0.91093395]
[1747228758112,0.494131,104080.0,104070.0,1.13553395]
[1747228761233,0.67743183,104080.0,104070.0,1.13553395]
[1747228761421,0.70973183,104080.0,104070.0,0.91393395]
[1747228761929,0.74203183,104080.0,104070.0,0.91393395]
[1747228762120,0.77333183,104080.0,104070.0,0.75193395]
[1747228763526,0.77895254,104080.0,104070.0,0.75193395]
[1747228764516,0.59565171,104080.0,104070.0,0.75193395]
[1747228764720,0.590031,104080.0,104070.0,0.75193395]
[1747228767121,0.77333183,104080.0,104070.0,0.16668455]
[1747228767323,1.35565183,104080.0,104070.0,0.006]
[1747228767721,1.36127254,104080.0,104070.0,0.006]
[1747228768114,1.52327254,104080.0,104070.0,0.006]
[1747228768721,1.51765183,104080.0,104070.0,0.006]
[1747228769329,1.334351,104080.0,104070.0,0.006]
[1747228769628,1.51765183,104080.0,104070.0,0.006]
[1747228772925,1.59071911,104080.0,104070.0,0.006]
[1747228777933,1.59633982,104080.0,104070.0,0.006]
[1747228778835,1.59071911,104080.0,104070.0,0.006]
[1747228782434,1.68750884,104080.0,104070.0,0.006]
[1747228787538,1.68750884,104080.0,104070.0,0.0381]
[1747228788138,1.52550884,104080.0,104070.0,0.0381]
[1747228789642,1.52550884,104080.0,104070.0,0.0684]
[1747228790336,1.45244156,104080.0,104070.0,0.0684]
[1747228790535,1.26914073,104080.0,104070.0,0.0684]
[1747228790734,1.45244156,104080.0,104070.0,0.0684]
[1747228791243,1.67412156,104080.0,104070.0,0.0684]
[1747228791943,0.57704073,104080.0,104070.0,0.2605494]
[1747228792236,0.57728073,104080.0,104070.0,0.87943395]
[1747228792932,0.54498073,104080.0,104070.0,0.87943395]
[1747228793743,0.32322073,104080.0,104070.0,0.87943395]
[1747228794043,0.54482073,104080.0,104070.0,0.87943395]
[1747228797144,0.54482073,104080.0,104070.0,0.71743395]
[1747228797843,0.6182395,104080.0,104070.0,0.71743395]
[1747228798039,0.3643395,104080.0,104070.0,0.90073478]
[1747228798241,0.1722085,104080.0,104070.0,1.40881878]
[1747228798842,0.4043395,104080.0,104070.0,1.63033878]
[1747228799741,0.3643395,104080.0,104070.0,1.63033878]
[1747228800746,0.3643395,104080.0,104070.0,1.40881878]
[1747228800935,0.55764033,104080.0,104070.0,0.68728455]
[1747228801131,0.75284033,104080.0,104070.0,0.52528455]
[1747228801340,1.42364033,104080.0,104070.0,0.16448455]
[1747228801641,1.45634033,104080.0,104070.0,0.16448455]
[1747228802241,0.93916104,104080.0,104070.0,0.16448455]
[1747228802431,0.76895254,104080.0,104070.0,0.16448455]
[1747228802944,0.76895254,104080.0,104070.0,0.35663395]
[1747228803243,0.76895254,104080.0,104070.0,0.16448455]
[1747228803442,1.12975254,104080.0,104070.0,0.16448455]
[1747228806342,1.01987048,104080.0,104070.0,0.16448455]
[1747228806646,1.20317131,104080.0,104070.0,0.16448455]
[1747228808249,1.36517131,104080.0,104070.0,0.16448455]
[1747228810350,1.36517131,104080.0,104070.0,0.10208455]
[1747228810540,1.36517131,104080.0,104070.0,0.006]